Cogmind - Beta 11 --- EXPLORER MODE // 2022.04.14 @ 01:45:33 Player: Genju Result: Self-destructed Performance ------------- Evolutions (1) 500 Regions Visited (2) 400 Robots Destroyed (19) 95 Value Destroyed (593) 593 Prototype IDs (2) 40 Alien Tech Used (0) 0 Bonus (0) 0 TOTAL SCORE: 1628 Bonus ------- None Cogmind --------- Core Integrity 302/400 Matter 273/300 Energy 265/265 System Corruption 0% Temperature Cool (0) Movement Flying (34) Location -9/Materials Parts ------- > --- POWER (2) -------- Improved Ion Engine > --- PROPULSION (3) --- Flight Unit Flight Unit Flight Unit > --- UTILITY (3) ------ Structural Scanner Sensor Array Signal Interpreter > --- WEAPON (2) ------- Datajack > --- INVENTORY (5) ---- Flight Unit Flight Unit Visual Processing Unit ECM Suite Peak State ------------ > --- POWER ------------ Ion Engine Improved Ion Engine > --- PROPULSION ------- Hover Unit Hover Unit Improved Hover Unit > --- UTILITY ---------- Structural Scanner Sensor Array ECM Suite > --- WEAPON ----------- EM Pulse Gun Particle Gun > --- INVENTORY -------- Hover Unit Hover Unit Heat Sink Visual Processing Unit Signal Interpreter [Rating: 13] Favorites ----------- Power Ion Engine Engine Ion Engine Propulsion Aluminum Leg Leg Aluminum Leg Hover Unit Hover Unit Flight Unit Flight Unit Utility Structural Scanner Device Structural Scanner Storage Medium Storage Unit Processor Targeting Computer Weapon Assault Rifle Energy Gun Particle Gun Energy Cannon EM Pulse Cannon Ballistic Gun Assault Rifle Special Melee Weapon Datajack Build | -11 -10 -9 ------- Run | Scr Mat Mat Slots Evolved 3 | . 1 2 Power 1 | . . 1 Propulsion 1 | . . 1 Utility 1 | . 1 . Weapon . | . . . Parts Attached 34 | 7 15 12 Power 6 | 1 3 2 Engine 6 | 1 3 2 Core . | . . . Reactor . | . . . Propulsion 13 | 2 6 5 Treads . | . . . Leg 4 | 2 2 . Wheel . | . . . Hover 6 | . 4 2 Flight 3 | . . 3 Utility 8 | 2 5 1 Device 5 | 1 4 . Storage 1 | 1 . . Processor 2 | . 1 1 Hackware . | . . . Protection . | . . . Artifact . | . . . Weapon 7 | 2 1 4 Energy Gun 3 | . 1 2 Energy Cannon 1 | . . 1 Ballistic Gun 2 | 2 . . Ballistic Cannon . | . . . Launcher . | . . . Special Weapon . | . . . Impact Weapon . | . . . Slashing Weapon . | . . . Piercing Weapon . | . . . Special Melee Weapon 1 | . . 1 Unidentified Prototypes . | . . . Parts Lost 5 | . 3 2 Power 2 | . 1 1 Propulsion 2 | . 2 . Utility . | . . . Weapon 1 | . . 1 Highest Loss Streak 2 | . 2 1 To Critical Strikes . | . . . Average Slot Usage (%) 89 | . 94 77 Engine 11 | . 11 11 Leg 10 | . 15 . Hover 8 | . 6 12 Flight 4 | . . 15 Device 23 | . 23 24 Storage 4 | . 6 . Processor 4 | . 6 1 Energy Gun 6 | . 5 11 Ballistic Gun 11 | . 17 . Naked Turns . | . . . Heaviest Build 21 | 20 20 21 Greatest Support 20 | 20 20 19 Greatest Overweight (x) 4 | . 4 4 Average Overweight (x) . | . . . Largest Inventory Capacity 10 | 10 10 5 Average Capacity 6 | 8 7 5 Most Carried 10 | 5 10 5 Average Carried 5 | 2 5 4 Final Capacity 10 | 10 5 5 Final Carried 4 | 2 4 4 Class Distribution -------------------- 93% | Hacker-Mutant 4% | Scavenger-Mutant Dominant Class ---------------- Hacker-Mutant | -10/Materials Hacker-Mutant | -9/Materials Resources | -11 -10 -9 ----------- Run | Scr Mat Mat Matter Collected 749 | 186 390 173 Remotely . | . . . Salvage Created 649 | . 365 284 Parts 41 | . 21 20 Haulers Intercepted . | . . . Recyclers Shooed . | . . . Parts Field Recycled . | . . . Retrieved Matter . | . . . Parts Self-Destructed . | . . . Prevented . | . . . Kills | -11 -10 -9 ------- Run | Scr Mat Mat Combat Hostiles Destroyed 14 | . 8 6 Guns 14 | . 8 6 Classes Destroyed 5 | . 2 3 Watcher 5 | . 3 2 Swarmer 2 | . . 2 Grunt 8 | . 8 . Duelist 1 | . . 1 Sentry 3 | . . 3 Best Kill Streak 4 | . 2 4 Combat Bots Only 3 | . 2 3 Max Kills in Single Turn 1 | . 1 1 Gunslinging . | . . . Exploded . | . . . Melee . | . . . Uniques/NPCs Destroyed . | . . . Combat | -11 -10 -9 -------- Run | Scr Mat Mat Damage Taken 747 | . 378 369 Core 156 | . 58 98 Absorbed by Shields . | . . . Core Remaining (%) 88 | 100 76 . Volleys Fired 72 | . 43 29 Largest 2 | . 2 2 Hottest 105 | . 85 105 Shots Fired 104 | . 70 34 Gun 104 | . 70 34 Cannon . | . . . Launcher . | . . . Special . | . . . Kinetic 55 | . 55 . Thermal 37 | . 15 22 Explosive . | . . . Electromagnetic 12 | . . 12 Robot Hit Streak 44 | . 20 44 Robot Miss Streak 1 | . 1 . Penetration Max . | . . . Secondary Targets 1 | . 1 . Max Gunslinging Chain 1 | . 1 . Shots Hit Robots 94 | . 60 34 Core Hits 37 | . 23 14 Critical Kills . | . . . Critical Parts Destroyed . | . . . Critical Strikes 1 | . . 1 Burn 1 | . . 1 Melee Attacks 1 | . . 1 Impact . | . . . Slashing . | . . . Piercing . | . . . Sneak Attacks . | . . . Combat Hostiles . | . . . Follow-up Attacks . | . . . Damage Inflicted 1284 | . 812 472 Guns 1284 | . 812 472 Cannons . | . . . Explosions . | . . . Melee . | . . . Ramming . | . . . Kinetic 626 | . 626 . Thermal 511 | . 186 325 Explosive . | . . . Electromagnetic 147 | . . 147 Impact . | . . . Slashing . | . . . Piercing . | . . . Highest Corruption . | . . . Average Corruption . | . . . Corruption Purged . | . . . Corruption Blocked . | . . . Overload Shots . | . . . Overflow Damage . | . . . Projectiles . | . . . Explosions . | . . . Melee . | . . . Knockbacks . | . . . Impact . | . . . Kinetic . | . . . Secondary . | . . . Self-Inflicted Damage . | . . . Shots . | . . . Rammed . | . . . Targets Rammed . | . . . Kicked . | . . . Crushed . | . . . Highest Temperature 495 | . 343 495 Average Temperature 151 | . 146 155 Received Heat Transfer 504 | . 324 180 Effects 3 | . . 3 Energy Bleed 1 | . . 1 Matter Decay 2 | . . 2 Siege Activations . | . . . Robots Corrupted . | . . . Combat Hostiles . | . . . Parts Fried . | . . . Impact Corruptions . | . . . Robots Melted . | . . . Combat Hostiles . | . . . Parts Melted 1 | . . 1 Heat Transferred 1295 | . 444 851 Parts Sabotaged . | . . . Parts Stolen . | . . . Parts Stripped . | . . . Power Chain Reactions . | . . . Missiles Intercepted . | . . . Alert | -11 -10 -9 ------- Run | Scr Mat Mat Peak Influence 380 | . 134 380 Initial 3 | . . 3 Average 82 | . 44 184 Maximum Alert Level 1 | . . 1 Low Security (%) 88 | 100 100 58 Level 1 11 | . . 41 Level 2 . | . . . Level 3 . | . . . Level 4 . | . . . Level 5 . | . . . High Security . | . . . Max Security . | . . . Squads Dispatched 1 | . . 1 Investigation . | . . . Extermination . | . . . Reinforcement 1 | . . 1 Assault . | . . . Garrison . | . . . Intercept . | . . . Searches Triggered . | . . . Construction Impeded . | . . . Haulers Reinforced . | . . . Active Scanning Responses . | . . . Cargo Convoy Interrupts . | . . . Stealth | -11 -10 -9 --------- Run | Scr Mat Mat Distress Signals 4 | . 1 3 Communications Jammed . | . . . Distress Signals . | . . . Times Spotted 30 | . 11 19 Peak Tracking Total 7 | . 3 7 Tactical Retreats 5 | . . 5 Traps | -11 -10 -9 ------- Run | Scr Mat Mat Traps Triggered 5 | . 4 1 Indirectly . | . . . Trap Hack Attempts . | . . . Triggered . | . . . Disarmed 4 | . 4 . Reprogrammed . | . . . Reused . | . . . Traps Extracted . | . . . Installed . | . . . Triggered . | . . . Machines | -11 -10 -9 ---------- Run | Scr Mat Mat Machines Disabled . | . . . Max in Single Turn . | . . . Machines Sabotaged . | . . . Garrisons Compromised . | . . . Overloaded Fab Kills . | . . . Hacking | -11 -10 -9 --------- Run | Scr Mat Mat Machines Accessed 23 | . 11 12 Terminals 18 | . 8 10 Fabricators . | . . . Repair Stations 1 | . 1 . Recycling Units 3 | . 2 1 Scanalyzers 1 | . . 1 Garrison Access . | . . . Total Hacks 83 | . 30 53 Successful 68 | . 25 43 Failed 15 | . 5 10 Catastrophic 2 | . . 2 Database Lockouts . | . . . Manual 68 | . 29 39 Terminals 70 | . 26 44 Fabricators . | . . . Repair Stations 2 | . 2 . Recycling Units 3 | . 2 1 Scanalyzers 8 | . . 8 Garrison Access . | . . . Terminal Hacks 23 | . 8 15 Record 3 | . . 3 Part Schematic 16 | . 7 9 Prototype ID Bank 1 | . . 1 Disarm Traps 1 | . 1 . Dispatch Records 1 | . . 1 Recall Reinforcements 1 | . . 1 Fabricator Hacks . | . . . Repair Station Hacks 1 | . 1 . Scan Component 1 | . 1 . Recycling Unit Hacks . | . . . Scanalyzer 7 | . . 7 Insert Component 3 | . . 3 Analyze 4 | . . 4 Garrison Access Hacks . | . . . Unauthorized Hacks 37 | . 16 21 Terminals 32 | . 13 19 Assimilate 14 | . 5 9 Botnet 18 | . 8 10 Fabricators . | . . . Repair Stations 1 | . 1 . Mechanics 1 | . 1 . Recycling Units 3 | . 2 1 Reject 3 | . 2 1 Scanalyzers 1 | . . 1 Researchers 1 | . . 1 Garrison Access . | . . . Data Cores Recovered . | . . . Used . | . . . Hacking Detections 18 | . 9 9 Full Trace Events . | . . . Feedback Events . | . . . Feedback Blocked . | . . . Robot Schematics Acquired . | . . . Robots Built . | . . . Authchips . | . . . Time . | . . . Total Robot Build Rating . | . . . Part Schematics Acquired 15 | . 6 9 Parts Built . | . . . Authchips . | . . . Time . | . . . Total Part Build Rating . | . . . Parts Repaired . | . . . Time . | . . . Parts Recycled . | . . . Recycled Matter . | . . . Retrieved Matter . | . . . Retrieved Components . | . . . Parts Scanalyzed 3 | . . 3 Part Schematics Acquired 3 | . . 3 Parts Damaged . | . . . Bothacking | -11 -10 -9 ------------ Run | Scr Mat Mat Used RIF Installer . | . . . Robots Hacked 1 | . . 1 Non-combat . | . . . Combat 1 | . . 1 Robot Hacks Applied 1 | . . 1 parse_system 1 | . . 1 Relay Couplers Released . | . . . Fabnet Peak Effective % . | . . . Robots Rewired . | . . . Allies Hacked . | . . . Hacks Repelled . | . . . Allies | -11 -10 -9 -------- Run | Scr Mat Mat Total Allies 1 | . . 1 Largest Group 1 | . . 1 Highest-Rated Group 10 | . . 10 Highest-Rated Ally 10 | . . 10 Total Orders . | . . . Ally Attacks . | . . . Total Damage . | . . . Kills . | . . . Allies Corrupted . | . . . Allies Melted . | . . . Intel | -11 -10 -9 ------- Run | Scr Mat Mat Robot Analysis Total . | . . . Derelict Logs Recovered . | . . . Drone Launches . | . . . Drone Recoveries . | . . . Exploration | -11 -10 -9 ------------- Run | Scr Mat Mat Turns Passed 1689 | 68 1136 485 Spaces Moved 1871 | 52 952 867 Core 46 | 13 32 1 Treads . | . . . Legs 539 | 39 500 . Wheels . | . . . Hover 656 | . 420 236 Flight 630 | . . 630 Fastest Speed 34 | 50 56 34 Average Speed 71 | 102 97 39 Slowest Speed 250 | 120 250 250 Overloaded Moves . | . . . Propulsion Burnouts . | . . . Robots Hopped . | . . . Cave-ins Triggered . | . . . Exploration Rate (%) 54 | 5 98 60 Regions Visited 2 Branch Regions . Pre-discovered Areas . | . . . Known Exits Taken 2 | 1 1 . Unknown Exits Taken . | . . . Scrap Searched . | . . . Spaces Dug . | . . . Terrain Destroyed . | . . . Melee . | . . . Projectile . | . . . AOE . | . . . Terrain Rammed . | . . . Walls Destroyed . | . . . Machines Disabled . | . . . Actions | -11 -10 -9 --------- Run | Scr Mat Mat Total 2127 | 66 1088 973 Wait 94 | . 50 44 Move 1869 | 51 951 867 Hop . | . . . Pick Up 34 | 8 17 9 Fast Attach 6 | 1 2 3 Attach 19 | 6 7 6 Detach 1 | . . 1 Swap 9 | . 6 3 Drop 22 | . 12 10 Fire 72 | . 43 29 Melee 1 | . . 1 Ram . | . . . Kick . | . . . Crush . | . . . Escape Stasis . | . . . Rewire . | . . . Trap . | . . . Miscellaneous . | . . . Route ------- -11/Scrapyard -10/Materials (discovered 5 exits: *Mat x3 / *Min x2) -9/Materials (discovered 2 exits: *Mat / *Sto) History --------- Turn | Location | Event 9 | -11/Scrapyard | Identified exit to Materials 9 | -11/Scrapyard | Discovered exit to Materials (range 16) 69 | -11/Scrapyard | Entered Materials 69 | -10/Materials | Evolved 1 slot: Utility x1 318 | -10/Materials | Build established: Hacker-Mutant 361 | -10/Materials | Identified exit to Materials 361 | -10/Materials | Discovered exit to Materials (range 12) 601 | -10/Materials | Identified exit to Mines 601 | -10/Materials | Discovered exit to Mines (range 15) 681 | -10/Materials | Discovered exit to Materials (range 15) 1086 | -10/Materials | Discovered exit to Materials (range 3) 1151 | -10/Materials | Discovered exit to Mines (range 15) 1205 | -10/Materials | Entered another Materials area 1205 | -9/Materials | Evolved 2 slots: Power x1, Propulsion x1 1291 | -9/Materials | Identified exit to Storage 1291 | -9/Materials | Discovered exit to Storage (range 4) 1559 | -9/Materials | Identified exit to Materials 1559 | -9/Materials | Discovered exit to Materials (range 5) 1690 | -9/Materials | Self-destructed Last Messages --------------- >>Trojan(Assimilate) Trojan loaded successfully. Testing... System interface override in place. >>Trojan(Botnet) Trojan loaded successfully. Testing... Terminal linked with 9 systems. Awaiting botnet instructions. Technician 2a reveals location of hidden door. Acquired EM Pulse Cannon. Technician 2a suffers critical hit (Burn). Technician 2a destroyed. Dropped EM Pulse Cannon. EM Pulse Gun destroyed. Acquired 12 matter. Acquired Datajack. Jacked Y-45 Defender... >>parse_system Reading system data... Map ----- +----------------------------------------------------+ | | | | | | | | | | | | | | | | | ?????????????????????????????????????? | | ?????????????????????????????????????? | | ?????????????????????????????????????? | | ?????????????????????????????????????? | | ?????????????????##########??????????? | | ?????????????????#################???? | | ??????????######### #########???? | | ??????????######### #### !!##???? | | ??????????##= # [[! #### !!##???? | | ??????????## + [!! # !!##???? | | ??????????## """# [!! # !!##???? | | ??????????## """# / ]]##???? | | ??????????## """########g ]]###### | | ??????????## ] x ######## ########## | | #################+####### # # | | ############### Y # # | | ## # Y + # | | ## """ """ # ########@ # # | | ## """"""""" # ######### ## # | | ## """"" " + + """" # ## # | | ## # # """" # ## # | | ##+############ # ?"""" + ## x # | | ########## # ??? # ## # | | ## # # ?????!## ## # | | T ## "T" + # ## ## # | | ## [ # ##########+####/##### | | ########## ## ## ##### | | ### ########## # """ ## ##??? | | ### ###?????## # """ ## ##??? | | ?## ##??????## + """ ## ##??? | | ?## ##??????## # "T" ## ##??? | | ?## ##??????### # """ + ##??? | | ?## ##??????### # #####??? | | ?## ######???## #####+###########??? | | ?## ######???## #### ##????? | | ?## ####### #### ##### ##????? | | ?## ####### #### ##### ##????? | | ?## #### ##### ######? | | ?## ####### #### #####+######? | | ?## ####### #### # ##? | | ?### ### ## #### # """ """ ##? | | ?### ### ## #### # """ """ ##? | +----------------------------------------------------+ Best States ------------- Heat Dissipation 28 Energy Generation 17 Energy Capacity 415 Matter Stores 300 Matter Capacity 300 Sight Range 16 Robot Scan Range 14 Terrain Scan Density 10 ECM Strength 1 Resistance: KI 35 Resistance: TH 35 Resistance: EX 35 Resistance: EM 35 Resistance: I 35 Resistance: S 35 Resistance: P 35 Evasion (%) 63 Targeting Accuracy 5 Offensive Hacking 20 Item Schematics ----------------- Hover Unit | -10/Materials | Hacked Sensor Array | -10/Materials | Hacked Aluminum Leg | -10/Materials | Hacked Assault Rifle | -10/Materials | Hacked Datajack | -10/Materials | Hacked Imp. Hover Unit | -10/Materials | Hacked Signal Interpreter | -9/Materials | Scanalyzed Visual Processing Unit | -9/Materials | Scanalyzed Heat Sink | -9/Materials | Scanalyzed Flight Unit | -9/Materials | Hacked VTOL Module | -9/Materials | Hacked Imp. Ion Engine | -9/Materials | Hacked Weight Redist. System | -9/Materials | Hacked Structural Scanner | -9/Materials | Hacked Shield Generator | -9/Materials | Hacked Robot Schematics ------------------ None Fabricated ------------ Nothing Alien Tech Used ----------------- None Achievements -------------- GoHome() Challenges ------------ None Game ------ Seed LegFissionDoomcannon Manual? 0 Play Time 00:44:11 Cumulative 5.8 hours Start 2022.04.13 @ 23:39:09 End 2022.04.14 @ 01:45:33 Sessions 3 Manual Loads 0 Difficulty Explorer Special Mode None Game No. 15 Rogue 1 Adventurer 3 Explorer 11 Win Type - Total 0 Types 0/0/0/0/0/0/0/0/0 Lore% 5 Gallery% 12 Achievement% 15 Wizard Run 0 Options --------- ASCII 0 Keyboard 0 Movement Numpad Keybinds 0 Fullscreen 1 Font 24/Smallcaps Map View 76x50 Tactical HUD 0 Map Filters NONE Filters NONE Steam 1 RUN: 0cecab65-fee7-4bf5-a8c4-b971b8e97d64